[Event "EWCCC Online Preliminary-D 2020"]
[Site "Online"]
[Date "2020.12.19"]
[Round "1.2"]
[White "Matnadze, Ana"]
[Black "Dubovyk, Anastasiia"]
[Result "0-1"]
[ECO "E68"]
[WhiteElo "2421"]
[BlackElo "1971"]
[Annotator "RC"]
[PlyCount "112"]
[EventDate "2020.12.19"]
[EventType "team-tourn"]
[EventCountry "NET"]
[SourceTitle "playchess.com"]
[Source "ChessBase"]
[SourceQuality "1"]
[TimeControl "900+5"]

1. d4 {[%emt 0:00:03]} Nf6 {[%emt 0:00:04]} 2. Nf3 {[%emt 0:00:05]} g6 {[%emt 0:00:03]} 3. g3 {[%emt 0:00:06]} Bg7 {[%emt 0:00:02]} 4. Bg2 {[%emt 0:00:04]} O-O {[%emt 0:00:04]} 5. O-O {[%emt 0:00:03]} d6 {[%emt 0:00:06]} 6. c4 {[%emt 0:00:03]} Nbd7 {[%emt 0:00:21]} 7. Nc3 {[%emt 0:00:03]} e5 {[%emt 0:00:04]} 8. h3 {[%emt 0:00:05]} exd4 {[%emt 0:00:09]} 9. Nxd4 {[%emt 0:00:03]} Re8 {[%emt 0:00:02]} 10. e4 {[%emt 0:00:04]} a6 {[%emt 0:00:06]} 11. Rb1 {[%emt 0:00:20]} Rb8 {[%emt 0:00:03]} 12. b4 {[%emt 0:00:11]} Ne5 {[%emt 0:00:09]} 13. Qb3 {[%emt 0:00:16]} c5 {[%emt 0:00:07]} 14. Nc2 {[%emt 0:00:14]} Be6 {[%emt 0:01:26]} 15. Nd5 {[%emt 0:00:20]} Bxd5 {[%emt 0:00:46]} 16. cxd5 {[%emt 0:00:25]} b5 {[%emt 0:00:40]} 17. Bb2 {[%emt 0:00:52]} Nc4 {[%emt 0:00:17]} 18. Bxf6 {[%emt 0:00:49]} Qxf6 {[%emt 0:00:30]} 19. Rfd1 {[%emt 0:00:16]} Nb2 {[%emt 0:01:42]} 20. Rf1 {[%emt 0:00:34]} c4 {[%emt 0:00:40]} 21. Qa3 {[%emt 0:00:58]} Qc3 {[%emt 0:00:25]} 22. Qxc3 {[%emt 0:01:27]} Bxc3 {[%emt 0:00:04]} 23. a3 {[%emt 0:00:24]} Ra8 {[%emt 0:00:50]} 24. f4 {[%emt 0:00:17]} a5 {[%emt 0:00:21]} 25. bxa5 {[%emt 0:00:05]} Rxa5 {[%emt 0:00:03]} 26. g4 {[%emt 0:01:34]} Nd3 {[%emt 0:00:52]} 27. Kh2 {[%emt 0:01:04]} Nxf4 {[%emt 0:00:49]} 28. Rxf4 {[%emt 0:01:25]} Be5 {[%emt 0:00:02]} 29. Kg3 {[%emt 0:00:11]} g5 {[%emt 0:00:03]} 30. Kf3 {[%emt 0:00:03]} Bxf4 {[%emt 0:00:25]} 31. h4 {[%emt 0:00:18]} h6 {[%emt 0:00:12]} 32. Bf1 {[%emt 0:00:09]} Rea8 {[%emt 0:00:13]} 33. h5 {[%emt 0:00:16]} Kg7 {[%emt 0:00:07]} 34. Ke2 {[%emt 0:00:04]} Kf6 {[%emt 0:00:04]} 35. Bg2 {[%emt 0:00:12]} Ke5 {[%emt 0:00:40]} 36. Bf3 {[%emt 0:00:30]} Rxa3 {[%emt 0:01:04]} 37. Nxa3 {[%emt 0:00:03]} Rxa3 {[%emt 0:00:02]} 38. Rxb5 {[%emt 0:00:07]} c3 {[%emt 0:00:21]} 39. Kd3 {[%emt 0:01:27]} c2+ {[%emt 0:00:02]} 40. Kxc2 {[%emt 0:00:02]} Rxf3 {[%emt 0:00:03]} 41. Rb7 {[%emt 0:00:17]} Kxe4 {[%emt 0:00:22]} 42. Rxf7 {[%emt 0:00:05]} Be5 {[%emt 0:00:12]} 43. Rh7 {[%emt 0:00:05]} Rf6 {[%emt 0:00:02]} 44. Ra7 {[%emt 0:00:09]} Kxd5 {[%emt 0:00:06]} 45. Kd3 {[%emt 0:00:02]} Rf3+ {[%emt 0:00:04]} 46. Ke2 {[%emt 0:00:03]} Rf2+ {[%emt 0:00:25]} 47. Kd3 {[%emt 0:00:04]} Rg2 {[%emt 0:00:19]} 48. Rh7 {[%emt 0:00:05]} Rxg4 {[%emt 0:00:02]} 49. Rxh6 {[%emt 0:00:02]} Rh4 {[%emt 0:00:02]} 50. Rh7 {[%emt 0:00:09]} g4 {[%emt 0:00:02]} 51. Ke3 {[%emt 0:00:03]} g3 {[%emt 0:00:03]} 52. Kf3 {[%emt 0:00:02]} Rh2 {[%emt 0:00:02]} 53. Ra7 {[%emt 0:00:17]} Rf2+ {[%emt 0:00:10]} 54. Kg4 {[%emt 0:00:08]} g2 {[%emt 0:00:02]} 55. Ra5+ {[%emt 0:00:01]} Ke6 {[%emt 0:00:03]} 56. Ra1 {[%emt 0:00:04]} Bxa1 {[%emt 0:00:03]} 0-1

[Event "EWCCC Online Preliminary-D 2020"]
[Site "Online"]
[Date "2020.12.19"]
[Round "2.1"]
[White "Koridze, Lile"]
[Black "Corke, Anya S"]
[Result "1/2-1/2"]
[ECO "D10"]
[WhiteElo "2016"]
[BlackElo "2255"]
[Annotator "NA"]
[PlyCount "114"]
[EventDate "2020.12.19"]
[EventType "team-tourn"]
[EventCountry "NET"]
[SourceTitle "playchess.com"]
[Source "ChessBase"]
[SourceQuality "1"]
[TimeControl "900+5"]

1. d4 {[%emt 0:00:00]} d5 {[%emt 0:00:14]} 2. c4 {[%emt 0:00:04]} c6 {[%emt 0:00:02]} 3. cxd5 {[%emt 0:01:04]} cxd5 {[%emt 0:00:03]} 4. Bf4 {[%emt 0:00:39]} Nc6 {[%emt 0:00:08]} 5. Nc3 {[%emt 0:00:06]} a6 {[%emt 0:00:07]} 6. e3 {[%emt 0:00:06]} Nf6 {[%emt 0:00:05]} 7. Bd3 {[%emt 0:00:03]} Bg4 {[%emt 0:00:33]} 8. Nge2 {[%emt 0:00:26]} e6 {[%emt 0:00:03]} 9. h3 {[%emt 0:00:03]} Bh5 {[%emt 0:00:06]} 10. Qb3 {[%emt 0:00:12]} Na5 {[%emt 0:01:31]} 11. Qa4+ {[%emt 0:00:20]} Nd7 {[%emt 0:00:19]} 12. O-O {[%emt 0:00:40]} Be7 {[%emt 0:00:14]} 13. Rad1 {[%emt 0:00:12]} O-O {[%emt 0:01:13]} 14. e4 {[%emt 0:00:32]} Nf6 {[%emt 0:02:06]} 15. exd5 {[%emt 0:01:08]} exd5 {[%emt 0:01:05]} 16. Rc1 {[%emt 0:00:35]} b5 {[%emt 0:00:37]} 17. Qc2 {[%emt 0:00:22]} Rc8 {[%emt 0:00:11]} 18. Qb1 {[%emt 0:01:35]} Bg6 {[%emt 0:00:53]} 19. Ng3 {[%emt 0:00:31]} Nc4 {[%emt 0:01:17]} 20. Nf5 {[%emt 0:00:18]} Bxf5 {[%emt 0:00:50]} 21. Bxf5 {[%emt 0:00:03]} Rc6 {[%emt 0:00:02]} 22. Rfe1 {[%emt 0:00:24]} Bb4 {[%emt 0:00:06]} 23. Re2 {[%emt 0:00:52]} h6 {[%emt 0:00:18]} 24. Qd3 {[%emt 0:00:19]} Bd6 {[%emt 0:00:25]} 25. Be5 {[%emt 0:00:29]} Nb6 {[%emt 0:02:04]} 26. Rce1 {[%emt 0:00:34]} b4 {[%emt 0:00:02]} 27. Nd1 {[%emt 0:00:28]} Nc4 {[%emt 0:00:24]} 28. Qf3 {[%emt 0:01:29]} Bb8 {[%emt 0:01:00]} 29. b3 {[%emt 0:00:33]} Nd6 {[%emt 0:00:22]} 30. Ne3 {[%emt 0:01:00]} Rc3 {[%emt 0:00:23]} 31. Bb1 {[%emt 0:01:07]} Nde4 {[%emt 0:00:03]} 32. Bxf6 {[%emt 0:00:16]} Nxf6 {[%emt 0:00:08]} 33. Rc2 {[%emt 0:00:18]} Qd6 {[%emt 0:00:03]} 34. Rxc3 {[%emt 0:00:06]} Qh2+ {[%emt 0:00:08]} 35. Kf1 {[%emt 0:00:01]} bxc3 {[%emt 0:00:02]} 36. Bc2 {[%emt 0:00:23]} Re8 {[%emt 0:00:03]} 37. Ke2 {[%emt 0:00:23]} Ne4 {[%emt 0:00:09]} 38. Kd1 {[%emt 0:00:11]} Qd6 {[%emt 0:00:06]} 39. Nxd5 {[%emt 0:00:09]} Qxd5 {[%emt 0:00:03]} 40. Rxe4 {[%emt 0:00:01]} Rxe4 {[%emt 0:00:27]} 41. Qxe4 {[%emt 0:00:02]} Qd7 {[%emt 0:00:12]} 42. Qh7+ {[%emt 0:00:09]} Kf8 {[%emt 0:00:02]} 43. Qh8+ {[%emt 0:00:03]} Ke7 {[%emt 0:00:02]} 44. Qxg7 {[%emt 0:00:09]} Qb5 {[%emt 0:00:12]} 45. Ke1 {[%emt 0:00:12]} Bf4 {[%emt 0:00:02]} 46. f3 {[%emt 0:00:06]} Bg5 {[%emt 0:00:08]} 47. Qe5+ {[%emt 0:00:02]} Qxe5+ {[%emt 0:00:02]} 48. dxe5 {[%emt 0:00:01]} Ke6 {[%emt 0:00:02]} 49. g3 {[%emt 0:00:03]} Bd2+ {[%emt 0:00:03]} 50. Ke2 {[%emt 0:00:01]} Kxe5 {[%emt 0:00:01]} 51. f4+ {[%emt 0:00:04]} Kd4 {[%emt 0:00:02]} 52. Kf3 {[%emt 0:00:02]} Be1 {[%emt 0:00:12]} 53. g4 {[%emt 0:00:04]} Bh4 {[%emt 0:00:03]} 54. Ke2 {[%emt 0:00:05]} a5 {[%emt 0:00:06]} 55. Kf3 {[%emt 0:00:03]} Kc5 {[%emt 0:00:08]} 56. Ke4 {[%emt 0:00:02]} Kb4 {[%emt 0:00:02]} 57. a4 {[%emt 0:00:09]} Be7 {[%emt 0:00:18]} 1/2-1/2

[Event "EWCCC Online Preliminary-D 2020"]
[Site "Online"]
[Date "2020.12.19"]
[Round "2.1"]
[White "Donghvani, Nia"]
[Black "Grigoryan, Meri"]
[Result "1/2-1/2"]
[ECO "A25"]
[WhiteElo "1985"]
[BlackElo "2044"]
[Annotator "NA"]
[PlyCount "75"]
[EventDate "2020.12.19"]
[EventType "team-tourn"]
[EventCountry "NET"]
[SourceTitle "playchess.com"]
[Source "ChessBase"]
[SourceQuality "1"]
[TimeControl "900+5"]

1. c4 {[%emt 0:00:00]} e5 {[%emt 0:00:24]} 2. Nc3 {[%emt 0:00:05]} Nf6 {[%emt 0:00:02]} 3. g3 {[%emt 0:00:02]} Nc6 {[%emt 0:00:26]} 4. Bg2 {[%emt 0:00:03]} Bb4 {[%emt 0:00:55]} 5. e3 {[%emt 0:00:07]} Bxc3 {[%emt 0:00:56]} 6. bxc3 {[%emt 0:00:05]} e4 {[%emt 0:02:42]} 7. d3 {[%emt 0:02:40]} exd3 {[%emt 0:00:42]} 8. Qxd3 {[%emt 0:00:02]} Ne5 {[%emt 0:00:52]} 9. Qd4 {[%emt 0:00:06]} Qe7 {[%emt 0:00:17]} 10. Nf3 {[%emt 0:00:54]} Nc6 {[%emt 0:00:36]} 11. Qd3 {[%emt 0:00:28]} Qe4 {[%emt 0:01:05]} 12. Qxe4+ {[%emt 0:01:05]} Nxe4 {[%emt 0:00:02]} 13. Nd4 {[%emt 0:00:11]} Nxc3 {[%emt 0:01:52]} 14. Nxc6 {[%emt 0:00:14]} dxc6 {[%emt 0:00:44]} 15. Bb2 {[%emt 0:00:03]} Na4 {[%emt 0:00:02]} 16. Bxg7 {[%emt 0:00:03]} Rg8 {[%emt 0:00:02]} 17. Be5 {[%emt 0:01:10]} Be6 {[%emt 0:00:21]} 18. Rc1 {[%emt 0:00:04]} O-O-O {[%emt 0:00:13]} 19. O-O {[%emt 0:00:47]} Rd2 {[%emt 0:00:18]} 20. a3 {[%emt 0:00:34]} Rgd8 {[%emt 0:00:23]} 21. Bf6 {[%emt 0:00:51]} R8d3 {[%emt 0:00:37]} 22. Be4 {[%emt 0:00:09]} Rxa3 {[%emt 0:00:26]} 23. Bxh7 {[%emt 0:00:16]} Bh3 {[%emt 0:00:08]} 24. Rfd1 {[%emt 0:00:04]} Raa2 {[%emt 0:00:19]} 25. Bb1 {[%emt 0:00:38]} b6 {[%emt 0:02:29]} 26. Bxa2 {[%emt 0:00:05]} Rxa2 {[%emt 0:00:02]} 27. Rd8+ {[%emt 0:00:05]} Kb7 {[%emt 0:00:01]} 28. Rh8 {[%emt 0:00:15]} Be6 {[%emt 0:00:02]} 29. h4 {[%emt 0:00:12]} Nc5 {[%emt 0:00:09]} 30. f3 {[%emt 0:02:14]} Nd3 {[%emt 0:00:04]} 31. Rd1 {[%emt 0:00:32]} Nf2 {[%emt 0:00:12]} 32. Ra1 {[%emt 0:00:42]} Nh3+ {[%emt 0:00:02]} 33. Kh1 {[%emt 0:00:23]} Rc2 {[%emt 0:00:11]} 34. g4 {[%emt 0:00:50]} Nf2+ {[%emt 0:00:04]} 35. Kg1 {[%emt 0:00:03]} Nh3+ {[%emt 0:00:02]} 36. Kh1 {[%emt 0:00:15]} Nf2+ {[%emt 0:00:02]} 37. Kg1 {[%emt 0:00:09]} Nh3+ {[%emt 0:00:01]} 38. Kh1 {[%emt 0:00:11]} 1/2-1/2

[Event "EWCCC Online Preliminary-D 2020"]
[Site "Online"]
[Date "2020.12.19"]
[Round "2.1"]
[White "Fink-Nunn, Petra"]
[Black "Lomaia, Diana"]
[Result "0-1"]
[ECO "B80"]
[WhiteElo "1966"]
[BlackElo "1946"]
[Annotator "NA"]
[PlyCount "100"]
[EventDate "2020.12.19"]
[EventType "team-tourn"]
[EventCountry "NET"]
[SourceTitle "playchess.com"]
[Source "ChessBase"]
[SourceQuality "1"]
[TimeControl "900+5"]

1. e4 {[%emt 0:00:00]} c5 {[%emt 0:00:04]} 2. Nf3 {[%emt 0:00:03]} e6 {[%emt 0:00:02]} 3. d4 {[%emt 0:00:03]} cxd4 {[%emt 0:00:02]} 4. Nxd4 {[%emt 0:00:01]} Nc6 {[%emt 0:00:01]} 5. Nc3 {[%emt 0:00:16]} Qc7 {[%emt 0:00:08]} 6. g3 {[%emt 0:00:16]} a6 {[%emt 0:00:09]} 7. Bg2 {[%emt 0:00:06]} Nf6 {[%emt 0:00:23]} 8. O-O {[%emt 0:00:20]} Be7 {[%emt 0:01:19]} 9. Re1 {[%emt 0:01:02]} d6 {[%emt 0:00:36]} 10. Be3 {[%emt 0:00:32]} O-O {[%emt 0:00:05]} 11. a4 {[%emt 0:00:15]} Bd7 {[%emt 0:01:29]} 12. Nxc6 {[%emt 0:00:40]} Bxc6 {[%emt 0:00:29]} 13. a5 {[%emt 0:00:09]} Nd7 {[%emt 0:00:27]} 14. Qd2 {[%emt 0:01:13]} b5 {[%emt 0:01:35]} 15. axb6 {[%emt 0:00:24]} Nxb6 {[%emt 0:00:05]} 16. b3 {[%emt 0:00:21]} Bb7 {[%emt 0:02:22]} 17. Qd4 {[%emt 0:00:40]} Bf6 {[%emt 0:00:38]} 18. Qxb6 {[%emt 0:01:57]} Qxb6 {[%emt 0:00:09]} 19. Bxb6 {[%emt 0:00:02]} Bxc3 {[%emt 0:00:03]} 20. Bc7 {[%emt 0:00:40]} Bxa1 {[%emt 0:00:36]} 21. Rxa1 {[%emt 0:00:03]} Rfc8 {[%emt 0:01:42]} 22. Bxd6 {[%emt 0:00:08]} Rxc2 {[%emt 0:00:03]} 23. b4 {[%emt 0:00:21]} Rac8 {[%emt 0:01:26]} 24. Bc5 {[%emt 0:00:20]} Rd8 {[%emt 0:01:18]} 25. Rb1 {[%emt 0:00:48]} Bc6 {[%emt 0:00:12]} 26. Bf3 {[%emt 0:00:27]} Bb5 {[%emt 0:00:14]} 27. Be3 {[%emt 0:00:33]} f6 {[%emt 0:00:22]} 28. Bd1 {[%emt 0:00:27]} Rc6 {[%emt 0:00:30]} 29. Bf3 {[%emt 0:00:10]} Rc3 {[%emt 0:00:23]} 30. Kg2 {[%emt 0:00:39]} Kf7 {[%emt 0:00:02]} 31. Bg4 {[%emt 0:00:59]} Bd3 {[%emt 0:00:10]} 32. Ra1 {[%emt 0:00:52]} Bxe4+ {[%emt 0:00:06]} 33. Kh3 {[%emt 0:00:14]} Bd3 {[%emt 0:00:16]} 34. Bf3 {[%emt 0:00:05]} Bb5 {[%emt 0:00:08]} 35. Bb7 {[%emt 0:00:11]} Rd6 {[%emt 0:00:05]} 36. Bc5 {[%emt 0:00:06]} Rd8 {[%emt 0:00:10]} 37. Kg2 {[%emt 0:01:02]} e5 {[%emt 0:00:05]} 38. Be3 {[%emt 0:00:41]} Rb8 {[%emt 0:00:04]} 39. Bd5+ {[%emt 0:00:08]} Kg6 {[%emt 0:00:01]} 40. g4 {[%emt 0:00:22]} Bc6 {[%emt 0:00:04]} 41. Bxc6 {[%emt 0:00:15]} Rxc6 {[%emt 0:00:01]} 42. Bc5 {[%emt 0:00:02]} Rb5 {[%emt 0:00:08]} 43. h4 {[%emt 0:00:06]} h6 {[%emt 0:00:09]} 44. Kf3 {[%emt 0:00:08]} a5 {[%emt 0:00:05]} 45. h5+ {[%emt 0:00:20]} Kf7 {[%emt 0:00:08]} 46. Be3 {[%emt 0:00:15]} axb4 {[%emt 0:00:04]} 47. Ra7+ {[%emt 0:00:01]} Kg8 {[%emt 0:00:05]} 48. Ke4 {[%emt 0:00:03]} b3 {[%emt 0:00:03]} 49. Kf5 {[%emt 0:00:02]} b2 {[%emt 0:00:03]} 50. Kg6 {[%emt 0:00:03]} b1=Q# {[%emt 0:00:02]} 0-1

[Event "EWCCC Online Preliminary-D 2020"]
[Site "Online"]
[Date "2020.12.19"]
[Round "2.2"]
[White "Trippold, Denise"]
[Black "Prasol, Aliesia"]
[Result "1-0"]
[ECO "A90"]
[WhiteElo "2137"]
[BlackElo "1702"]
[Annotator "NA"]
[PlyCount "21"]
[EventDate "2020.12.19"]
[EventType "team-tourn"]
[EventCountry "NET"]
[SourceTitle "playchess.com"]
[Source "ChessBase"]
[SourceQuality "1"]
[TimeControl "900+5"]

1. d4 {[%emt 0:00:03]} e6 {[%emt 0:00:08]} 2. Nf3 {[%emt 0:00:12]} f5 {[%emt 0:00:14]} 3. g3 {[%emt 0:00:05]} Nf6 {[%emt 0:00:04]} 4. Bg2 {[%emt 0:00:02]} d5 {[%emt 0:00:01]} 5. O-O {[%emt 0:00:02]} c6 {[%emt 0:00:02]} 6. c4 {[%emt 0:00:03]} Bd6 {[%emt 0:00:03]} 7. Nc3 {[%emt 0:00:05]} O-O {[%emt 0:00:04]} 8. Qc2 {[%emt 0:00:03]} Nbd7 {[%emt 0:00:07]} 9. cxd5 {[%emt 0:00:08]} cxd5 {[%emt 0:00:16]} 10. Nb5 {[%emt 0:00:02]} Be7 {[%emt 0:00:02]} 11. Nc7 {[%emt 0:00:12]} 1-0

[Event "EWCCC Online Preliminary-D 2020"]
[Site "Online"]
[Date "2020.12.19"]
[Round "2.2"]
[White "Mashchenko, Tamila"]
[Black "Hrescak, Ivana"]
[Result "1/2-1/2"]
[ECO "A36"]
[WhiteElo "1768"]
[BlackElo "2212"]
[Annotator "NA"]
[PlyCount "111"]
[EventDate "2020.12.19"]
[EventType "team-tourn"]
[EventCountry "NET"]
[SourceTitle "playchess.com"]
[Source "ChessBase"]
[SourceQuality "1"]
[TimeControl "900+5"]

1. c4 {[%emt 0:00:00]} Nf6 {[%emt 0:00:03]} 2. Nc3 {[%emt 0:00:03]} g6 {[%emt 0:00:03]} 3. g3 {[%emt 0:00:03]} Bg7 {[%emt 0:00:02]} 4. Bg2 {[%emt 0:00:02]} O-O {[%emt 0:00:03]} 5. e4 {[%emt 0:00:15]} d6 {[%emt 0:00:07]} 6. Nge2 {[%emt 0:00:03]} c5 {[%emt 0:00:11]} 7. Rb1 {[%emt 0:00:09]} Nc6 {[%emt 0:00:03]} 8. O-O {[%emt 0:00:04]} Be6 {[%emt 0:00:07]} 9. d3 {[%emt 0:00:03]} Rb8 {[%emt 0:00:09]} 10. a3 {[%emt 0:00:02]} a5 {[%emt 0:00:19]} 11. h3 {[%emt 0:00:10]} Bd7 {[%emt 0:00:05]} 12. Be3 {[%emt 0:00:19]} Ne8 {[%emt 0:00:10]} 13. f4 {[%emt 0:00:31]} Nd4 {[%emt 0:00:06]} 14. b4 {[%emt 0:00:12]} axb4 {[%emt 0:00:03]} 15. axb4 {[%emt 0:00:02]} Nxe2+ {[%emt 0:00:04]} 16. Nxe2 {[%emt 0:00:03]} cxb4 {[%emt 0:00:02]} 17. Rxb4 {[%emt 0:00:03]} b5 {[%emt 0:00:25]} 18. Qb1 {[%emt 0:03:54]} Nc7 {[%emt 0:00:41]} 19. cxb5 {[%emt 0:00:22]} Nxb5 {[%emt 0:00:37]} 20. Qb3 {[%emt 0:02:06]} Be6 {[%emt 0:01:25]} 21. Qa4 {[%emt 0:00:35]} Nc3 {[%emt 0:00:26]} 22. Nxc3 {[%emt 0:00:05]} Bxc3 {[%emt 0:00:03]} 23. Rxb8 {[%emt 0:00:05]} Qxb8 {[%emt 0:00:03]} 24. Qc2 {[%emt 0:00:28]} Bg7 {[%emt 0:00:37]} 25. g4 {[%emt 0:00:29]} Qb3 {[%emt 0:01:14]} 26. Qxb3 {[%emt 0:00:44]} Bxb3 {[%emt 0:00:03]} 27. Rc1 {[%emt 0:00:12]} Rb8 {[%emt 0:00:58]} 28. Rc7 {[%emt 0:00:46]} Bf8 {[%emt 0:00:13]} 29. Ba7 {[%emt 0:00:20]} Rb5 {[%emt 0:00:36]} 30. Bf3 {[%emt 0:00:46]} e6 {[%emt 0:01:01]} 31. Kf2 {[%emt 0:01:05]} Ra5 {[%emt 0:00:21]} 32. Bd4 {[%emt 0:00:06]} e5 {[%emt 0:00:18]} 33. fxe5 {[%emt 0:00:09]} dxe5 {[%emt 0:00:03]} 34. Bc3 {[%emt 0:00:11]} Rb5 {[%emt 0:00:16]} 35. Rc8 {[%emt 0:00:10]} f6 {[%emt 0:00:40]} 36. Bd2 {[%emt 0:00:18]} Be6 {[%emt 0:00:10]} 37. Rc6 {[%emt 0:00:07]} Kf7 {[%emt 0:00:04]} 38. Rc7+ {[%emt 0:00:17]} Be7 {[%emt 0:00:07]} 39. g5 {[%emt 0:00:17]} f5 {[%emt 0:00:19]} 40. exf5 {[%emt 0:00:09]} Bxf5 {[%emt 0:00:06]} 41. Be4 {[%emt 0:01:13]} Bxh3 {[%emt 0:00:45]} 42. Kg3 {[%emt 0:00:47]} Be6 {[%emt 0:00:13]} 43. Bc6 {[%emt 0:00:07]} Rb3 {[%emt 0:00:15]} 44. Be4 {[%emt 0:00:03]} Kf8 {[%emt 0:00:22]} 45. Be3 {[%emt 0:00:14]} Bf5 {[%emt 0:00:14]} 46. Kf3 {[%emt 0:00:06]} Rb1 {[%emt 0:00:56]} 47. Bc5 {[%emt 0:00:08]} Bxe4+ {[%emt 0:01:26]} 48. dxe4 {[%emt 0:00:15]} Bxc5 {[%emt 0:00:48]} 49. Rxc5 {[%emt 0:00:03]} Rf1+ {[%emt 0:00:39]} 50. Kg2 {[%emt 0:00:05]} Re1 {[%emt 0:00:20]} 51. Rxe5 {[%emt 0:00:01]} Kf7 {[%emt 0:00:02]} 52. Kf2 {[%emt 0:00:02]} Ra1 {[%emt 0:00:12]} 53. Kf3 {[%emt 0:00:02]} Rf1+ {[%emt 0:00:04]} 54. Kg2 {[%emt 0:00:03]} Re1 {[%emt 0:00:06]} 55. Kf2 {[%emt 0:00:02]} Ra1 {[%emt 0:00:02]} 56. Kf3 {[%emt 0:00:01]} 1/2-1/2

[Event "EWCCC Online Preliminary-D 2020"]
[Site "Online"]
[Date "2020.12.19"]
[Round "2.3"]
[White "Maisuradze, Nino"]
[Black "Berezovsky, Fiorina"]
[Result "1-0"]
[ECO "E11"]
[WhiteElo "2214"]
[BlackElo "1665"]
[Annotator "NA"]
[PlyCount "27"]
[EventDate "2020.12.19"]
[EventType "team-tourn"]
[EventCountry "NET"]
[SourceTitle "playchess.com"]
[Source "ChessBase"]
[SourceQuality "1"]
[TimeControl "900+5"]

1. d4 {[%emt 0:00:01]} Nf6 {[%emt 0:00:03]} 2. c4 {[%emt 0:00:03]} e6 {[%emt 0:00:03]} 3. Nf3 {[%emt 0:00:03]} Bb4+ {[%emt 0:00:03]} 4. Bd2 {[%emt 0:00:02]} Bxd2+ {[%emt 0:00:06]} 5. Nbxd2 {[%emt 0:00:16]} d5 {[%emt 0:00:05]} 6. e3 {[%emt 0:00:03]} O-O {[%emt 0:00:12]} 7. Rc1 {[%emt 0:00:18]} c6 {[%emt 0:00:48]} 8. Qc2 {[%emt 0:00:08]} Nbd7 {[%emt 0:00:17]} 9. cxd5 {[%emt 0:00:03]} cxd5 {[%emt 0:00:06]} 10. Bd3 {[%emt 0:00:10]} Re8 {[%emt 0:00:36]} 11. Ne5 {[%emt 0:00:12]} b6 {[%emt 0:00:20]} 12. Nc6 {[%emt 0:00:07]} Qc7 {[%emt 0:03:00]} 13. Ne7+ {[%emt 0:00:03]} Rxe7 {[%emt 0:00:12]} 14. Qxc7 {[%emt 0:00:04]} 1-0

[Event "EWCCC Online Preliminary-D 2020"]
[Site "Online"]
[Date "2020.12.19"]
[Round "3.2"]
[White "Hrescak, Ivana"]
[Black "Rubsamen, Anais"]
[Result "1-0"]
[ECO "D85"]
[WhiteElo "2212"]
[BlackElo "1692"]
[Annotator "NA"]
[PlyCount "78"]
[EventDate "2020.12.19"]
[EventType "team-tourn"]
[EventCountry "NET"]
[SourceTitle "playchess.com"]
[Source "ChessBase"]
[SourceQuality "1"]
[TimeControl "900+5"]

1. d4 {[%emt 0:00:03]} Nf6 {[%emt 0:00:04]} 2. c4 {[%emt 0:00:03]} g6 {[%emt 0:00:01]} 3. Nc3 {[%emt 0:00:02]} d5 {[%emt 0:00:08]} 4. cxd5 {[%emt 0:00:02]} Nxd5 {[%emt 0:00:02]} 5. e4 {[%emt 0:00:02]} Nxc3 {[%emt 0:00:03]} 6. bxc3 {[%emt 0:00:02]} Bg7 {[%emt 0:00:02]} 7. Nf3 {[%emt 0:00:07]} O-O {[%emt 0:00:03]} 8. Rb1 {[%emt 0:00:08]} c5 {[%emt 0:00:21]} 9. Rb3 {[%emt 0:01:01]} Qa5 {[%emt 0:01:56]} 10. Qd2 {[%emt 0:00:43]} Rd8 {[%emt 0:01:30]} 11. d5 {[%emt 0:00:41]} Bd7 {[%emt 0:01:49]} 12. c4 {[%emt 0:00:17]} Qxd2+ {[%emt 0:01:27]} 13. Bxd2 {[%emt 0:00:06]} b6 {[%emt 0:00:02]} 14. Be2 {[%emt 0:00:25]} Ba4 {[%emt 0:01:15]} 15. Ra3 {[%emt 0:00:24]} Bc2 {[%emt 0:00:07]} 16. e5 {[%emt 0:00:45]} Nd7 {[%emt 0:00:14]} 17. Bf4 {[%emt 0:00:44]} g5 {[%emt 0:01:58]} 18. Bxg5 {[%emt 0:00:10]} Nxe5 {[%emt 0:00:02]} 19. Nxe5 {[%emt 0:00:23]} Bxe5 {[%emt 0:00:08]} 20. Bxe7 {[%emt 0:00:44]} Re8 {[%emt 0:00:04]} 21. Bg5 {[%emt 0:00:13]} Bd4 {[%emt 0:00:47]} 22. Rg3 {[%emt 0:01:43]} Kh8 {[%emt 0:00:09]} 23. Be3 {[%emt 0:00:16]} Be5 {[%emt 0:01:25]} 24. f4 {[%emt 0:00:21]} Bd4 {[%emt 0:00:17]} 25. Bxd4+ {[%emt 0:00:37]} cxd4 {[%emt 0:00:03]} 26. Kd2 {[%emt 0:00:02]} Be4 {[%emt 0:01:08]} 27. Bd3 {[%emt 0:00:15]} f5 {[%emt 0:00:02]} 28. Re1 {[%emt 0:00:39]} Rac8 {[%emt 0:00:09]} 29. Rg5 {[%emt 0:00:30]} h6 {[%emt 0:00:34]} 30. Rg6 {[%emt 0:00:17]} Kh7 {[%emt 0:00:03]} 31. Rd6 {[%emt 0:00:07]} Re7 {[%emt 0:01:24]} 32. g4 {[%emt 0:00:37]} Rce8 {[%emt 0:00:16]} 33. gxf5 {[%emt 0:00:13]} Kg8 {[%emt 0:00:03]} 34. Re6 {[%emt 0:00:32]} Rxe6 {[%emt 0:00:09]} 35. fxe6 {[%emt 0:00:03]} Bf3 {[%emt 0:00:02]} 36. f5 {[%emt 0:00:04]} Kf8 {[%emt 0:00:04]} 37. f6 {[%emt 0:00:03]} h5 {[%emt 0:00:02]} 38. Bg6 {[%emt 0:00:04]} Rc8 {[%emt 0:00:03]} 39. e7+ {[%emt 0:00:02]} Kg8 {[%emt 0:00:03]} 1-0